[Event "Chinese Chess League Men 2019"]
[Site "Daqing"]
[Date "2019.06.22"]
[Round "4.8"]
[White "Zhao, Zhouqiao CHN"]
[Black "Huang, Renjie"]
[Result "1/2-1/2"]
[ECO "A06"]
[WhiteElo "2215"]
[BlackElo "2327"]
[Annotator "NA"]
[PlyCount "87"]
[EventDate "2019.06.19"]
[EventType "team-tourn"]
[EventCountry "CHN"]
[SourceTitle "playchess.com"]
[Source "ChessBase"]
[SourceQuality "1"]
[TimeControl "5400+30"]

1. d4 {[%emt 0:00:00]} d5 {[%emt 0:00:00]} 2. c4 {[%emt 0:00:00]} c6 {[%emt 0:00:08]} 3. Nf3 {[%emt 0:00:12]} Nf6 {[%emt 0:00:01]} 4. e3 {[%emt 0:00:08]} e6 {[%emt 0:00:18]} 5. b3 {[%emt 0:01:04]} Nbd7 {[%emt 0:00:43]} 6. Bd3 {[%emt 0:00:37]} Bd6 {[%emt 0:00:23]} 7. Bb2 {[%emt 0:00:16]} O-O {[%emt 0:00:27]} 8. O-O {[%emt 0:02:28]} Re8 {[%emt 0:00:26]} 9. Ne5 {[%emt 0:08:39]} c5 {[%emt 0:00:36]} 10. Nd2 {[%emt 0:01:03]} cxd4 {[%emt 0:08:18]} 11. exd4 {[%emt 0:00:09]} dxc4 {[%emt 0:00:05]} 12. Ndxc4 {[%emt 0:06:05]} Nb6 {[%emt 0:02:09]} 13. Nxd6 {[%emt 0:19:54]} Qxd6 {[%emt 0:00:03]} 14. Qf3 {[%emt 0:00:14]} Qd5 {[%emt 0:09:11]} 15. Qxd5 {[%emt 0:13:08]} Nbxd5 {[%emt 0:01:12]} 16. Rfc1 {[%emt 0:00:37]} a6 {[%emt 0:00:00]} 17. Nc4 {[%emt 0:02:21]} Rd8 {[%emt 0:00:00]} 18. Nd2 {[%emt 0:06:15]} Bd7 {[%emt 0:00:00]} 19. Ne4 {[%emt 0:00:30]} Nxe4 {[%emt 0:00:00]} 20. Bxe4 {[%emt 0:00:06]} Bc6 {[%emt 0:00:05]} 21. Bxd5 {[%emt 0:01:57]} Rxd5 {[%emt 0:00:00]} 22. f3 {[%emt 0:00:34]} Rad8 {[%emt 0:00:00]} 23. Rc2 {[%emt 0:00:32]} g5 {[%emt 0:00:00]} 24. Rac1 {[%emt 0:01:11]} Kg7 {[%emt 0:00:00]} 25. Rc5 {[%emt 0:00:22]} Kf6 {[%emt 0:00:00]} 26. Kf2 {[%emt 0:00:52]} h5 {[%emt 0:00:00]} 27. Ke3 {[%emt 0:00:34]} g4 {[%emt 0:02:03]} 28. Rxd5 {[%emt 0:05:28]} Bxd5 {[%emt 0:00:57]} 29. Ba3 {[%emt 0:11:01]} gxf3 {[%emt 0:03:41]} 30. gxf3 {[%emt 0:00:02]} Rg8 {[%emt 0:00:15]} 31. Kf2 {[%emt 0:00:50]} h4 {[%emt 0:05:02]} 32. Rg1 {[%emt 0:06:28]} Rxg1 {[%emt 0:02:08]} 33. Kxg1 {[%emt 0:00:02]} Bxf3 {[%emt 0:00:30]} 34. Kf2 {[%emt 0:00:11]} Be4 {[%emt 0:00:35]} 35. Bd6 {[%emt 0:00:12]} Bb1 {[%emt 0:00:58]} 36. a3 {[%emt 0:00:06]} Bc2 {[%emt 0:00:24]} 37. b4 {[%emt 0:00:08]} Kf5 {[%emt 0:01:00]} 38. Ke3 {[%emt 0:00:23]} f6 {[%emt 0:00:50]} 39. Bc7 {[%emt 0:00:47]} e5 {[%emt 0:01:10]} 40. dxe5 {[%emt 0:00:05]} fxe5 {[%emt 0:00:02]} 41. Bd8 {[%emt 0:00:28]} h3 {[%emt 0:00:11]} 42. Bc7 {[%emt 0:00:50]} Ke6 {[%emt 0:00:37]} 43. b5 {[%emt 0:01:01]} axb5 {[%emt 0:03:57]} 44. Ba5 {[%emt 0:00:06]} 1/2-1/2

[Event "Chinese Chess League Men 2019"]
[Site "Daqing"]
[Date "2019.06.22"]
[Round "4.10"]
[White "Xu, Yi"]
[Black "Xiang, Zeyu"]
[Result "1/2-1/2"]
[ECO "C54"]
[WhiteElo "2526"]
[BlackElo "2432"]
[Annotator "ChessBase"]
[PlyCount "60"]
[EventDate "2019.06.19"]
[EventType "team-tourn"]
[EventCountry "CHN"]
[SourceTitle "playchess.com"]
[Source "ChessBase"]
[SourceQuality "1"]
[TimeControl "5400+30"]

1. e4 {[%emt 0:00:00]} e5 {[%emt 0:00:00]} 2. Nf3 {[%emt 0:00:00]} Nc6 {[%emt 0:00:00]} 3. Bc4 {[%emt 0:00:00]} Bc5 {[%emt 0:00:00]} 4. O-O {[%emt 0:00:19]} Nf6 {[%emt 0:00:04]} 5. d3 {[%emt 0:00:03]} d6 {[%emt 0:00:08]} 6. c3 {[%emt 0:00:04]} a6 {[%emt 0:00:05]} 7. Nbd2 {[%emt 0:01:09]} O-O {[%emt 0:00:24]} 8. Bb3 {[%emt 0:00:21]} Ba7 {[%emt 0:00:15]} 9. h3 {[%emt 0:00:13]} h6 {[%emt 0:00:13]} 10. Re1 {[%emt 0:00:25]} Nh5 {[%emt 0:00:06]} 11. Nf1 {[%emt 0:01:01]} Qf6 {[%emt 0:00:07]} 12. Be3 {[%emt 0:03:41]} Bxe3 {[%emt 0:00:05]} 13. Nxe3 {[%emt 0:03:05]} Nf4 {[%emt 0:00:08]} 14. Nd5 {[%emt 0:13:45]} Nxd5 {[%emt 0:00:05]} 15. exd5 {[%emt 0:00:07]} Ne7 {[%emt 0:00:05]} 16. d4 {[%emt 0:00:13]} Ng6 {[%emt 0:00:07]} 17. dxe5 {[%emt 0:00:17]} dxe5 {[%emt 0:00:06]} 18. Bc2 {[%emt 0:00:58]} Bf5 {[%emt 0:00:06]} 19. Bxf5 {[%emt 0:00:23]} Qxf5 {[%emt 0:00:05]} 20. Qb1 {[%emt 0:01:59]} Qxb1 {[%emt 0:05:59]} 21. Raxb1 {[%emt 0:00:06]} f6 {[%emt 0:00:33]} 22. c4 {[%emt 0:01:14]} Rfd8 {[%emt 0:01:52]} 23. g3 {[%emt 0:00:28]} c6 {[%emt 0:01:10]} 24. dxc6 {[%emt 0:00:37]} bxc6 {[%emt 0:00:04]} 25. Rbd1 {[%emt 0:00:34]} Kf7 {[%emt 0:01:38]} 26. Kf1 {[%emt 0:02:19]} Nf8 {[%emt 0:03:15]} 27. Nd2 {[%emt 0:05:12]} Rd4 {[%emt 0:04:51]} 28. Nf3 {[%emt 0:07:30]} Rdd8 {[%emt 0:05:33]} 29. Nd2 {[%emt 0:00:10]} Rd4 {[%emt 0:08:27]} 30. Nf3 {[%emt 0:01:10]} Rdd8 {[%emt 0:00:07]} 1/2-1/2

[Event "Chinese Chess League Men 2019"]
[Site "Daqing"]
[Date "2019.06.22"]
[Round "4.11"]
[White "Zou, Chen"]
[Black "Lou, Yiping"]
[Result "1-0"]
[ECO "B35"]
[WhiteElo "2415"]
[BlackElo "2482"]
[Annotator "ChessBase"]
[PlyCount "67"]
[EventDate "2019.06.19"]
[EventType "team-tourn"]
[EventCountry "CHN"]
[SourceTitle "playchess.com"]
[Source "ChessBase"]
[SourceQuality "1"]
[TimeControl "5400+30"]

1. e4 {[%emt 0:01:36]} c5 {[%emt 0:00:00]} 2. Nf3 {[%emt 0:00:16]} Nc6 {[%emt 0:00:00]} 3. d4 {[%emt 0:01:25]} cxd4 {[%emt 0:00:00]} 4. Nxd4 {[%emt 0:00:05]} g6 {[%emt 0:00:05]} 5. Nc3 {[%emt 0:00:06]} Bg7 {[%emt 0:00:11]} 6. Be3 {[%emt 0:00:05]} Nf6 {[%emt 0:00:05]} 7. Bc4 {[%emt 0:00:24]} O-O {[%emt 0:00:20]} 8. Bb3 {[%emt 0:00:09]} Re8 {[%emt 0:00:33]} 9. O-O {[%emt 0:12:27]} d6 {[%emt 0:01:53]} 10. h3 {[%emt 0:05:07]} Na5 {[%emt 0:02:09]} 11. Qd2 {[%emt 0:08:05]} b6 {[%emt 0:02:29]} 12. Bh6 {[%emt 0:05:14]} Nxb3 {[%emt 0:17:21]} 13. axb3 {[%emt 0:01:09]} Bh8 {[%emt 0:00:38]} 14. f4 {[%emt 0:14:11]} Bb7 {[%emt 0:04:44]} 15. e5 {[%emt 0:23:02]} Nh5 {[%emt 0:16:15]} 16. e6 {[%emt 0:02:15]} Ng3 {[%emt 0:09:58]} 17. exf7+ {[%emt 0:06:36]} Kxf7 {[%emt 0:00:27]} 18. Ne6 {[%emt 0:01:31]} Qc8 {[%emt 0:05:51]} 19. Rfe1 {[%emt 0:02:59]} Nf5 {[%emt 0:00:43]} 20. Ra4 {[%emt 0:10:16]} Bxc3 {[%emt 0:05:10]} 21. bxc3 {[%emt 0:00:22]} b5 {[%emt 0:00:21]} 22. g4 {[%emt 0:01:56]} Nxh6 {[%emt 0:01:13]} 23. f5 {[%emt 0:00:09]} Ng8 {[%emt 0:12:40]} 24. fxg6+ {[%emt 0:01:21]} hxg6 {[%emt 0:01:05]} 25. Rf4+ {[%emt 0:00:29]} Nf6 {[%emt 0:00:04]} 26. g5 {[%emt 0:00:13]} Qc6 {[%emt 0:01:06]} 27. Kh2 {[%emt 0:00:16]} Bc8 {[%emt 0:04:21]} 28. Qe3 {[%emt 0:01:19]} Bb7 {[%emt 0:02:35]} 29. Qd2 {[%emt 0:00:42]} Bc8 {[%emt 0:04:08]} 30. Qe3 {[%emt 0:00:01]} Bb7 {[%emt 0:00:14]} 31. Qg3 {[%emt 0:00:02]} Bc8 {[%emt 0:04:14]} 32. Qh4 {[%emt 0:00:53]} Kg8 {[%emt 0:02:56]} 33. Qh6 {[%emt 0:00:52]} Bxe6 {[%emt 0:00:12]} 34. gxf6 {[%emt 0:00:14]} 1-0

[Event "Chinese Chess League Men 2019"]
[Site "Daqing"]
[Date "2019.06.22"]
[Round "4.12"]
[White "Xu, Yining"]
[Black "Lin, Yi"]
[Result "1/2-1/2"]
[ECO "C43"]
[WhiteElo "2359"]
[BlackElo "2396"]
[Annotator "NA"]
[PlyCount "59"]
[EventDate "2019.06.19"]
[EventType "team-tourn"]
[EventCountry "CHN"]
[SourceTitle "playchess.com"]
[Source "ChessBase"]
[SourceQuality "1"]
[TimeControl "5400+30"]

1. e4 {[%emt 0:00:00]} e5 {[%emt 0:00:00]} 2. Nf3 {[%emt 0:00:04]} Nf6 {[%emt 0:00:00]} 3. d4 {[%emt 0:00:29]} Nxe4 {[%emt 0:00:01]} 4. Bd3 {[%emt 0:00:06]} d5 {[%emt 0:00:07]} 5. Nxe5 {[%emt 0:00:30]} Nd7 {[%emt 0:00:09]} 6. Nxd7 {[%emt 0:00:23]} Bxd7 {[%emt 0:00:06]} 7. O-O {[%emt 0:00:09]} Bd6 {[%emt 0:00:51]} 8. Qh5 {[%emt 0:00:46]} Qf6 {[%emt 0:05:05]} 9. Nc3 {[%emt 0:01:43]} Qxd4 {[%emt 0:04:40]} 10. Be3 {[%emt 0:00:35]} Qe5 {[%emt 0:01:36]} 11. Qxe5+ {[%emt 0:00:16]} Bxe5 {[%emt 0:00:05]} 12. Nxd5 {[%emt 0:00:33]} Nf6 {[%emt 0:00:35]} 13. Rae1 {[%emt 0:00:30]} Nxd5 {[%emt 0:03:42]} 14. Bd4 {[%emt 0:00:43]} f6 {[%emt 0:02:24]} 15. Bxe5 {[%emt 0:02:00]} O-O-O {[%emt 0:00:37]} 16. Bg3 {[%emt 0:03:14]} Nb4 {[%emt 0:01:19]} 17. Bc4 {[%emt 0:00:58]} Rhe8 {[%emt 0:02:53]} 18. c3 {[%emt 0:07:11]} Nc6 {[%emt 0:01:56]} 19. Bd3 {[%emt 0:10:27]} h6 {[%emt 0:08:49]} 20. f3 {[%emt 0:06:34]} Rxe1 {[%emt 0:01:37]} 21. Rxe1 {[%emt 0:00:45]} Re8 {[%emt 0:00:06]} 22. Rxe8+ {[%emt 0:05:53]} Bxe8 {[%emt 0:00:06]} 23. Kf2 {[%emt 0:00:12]} Ne7 {[%emt 0:02:07]} 24. Bf4 {[%emt 0:02:09]} Bf7 {[%emt 0:01:15]} 25. b3 {[%emt 0:06:56]} Kd7 {[%emt 0:01:41]} 26. Ke2 {[%emt 0:05:32]} Nd5 {[%emt 0:03:17]} 27. Bd2 {[%emt 0:00:06]} Ne7 {[%emt 0:00:07]} 28. Bf4 {[%emt 0:00:20]} Nd5 {[%emt 0:00:04]} 29. Bd2 {[%emt 0:00:03]} Ne7 {[%emt 0:00:04]} 30. Bf4 {[%emt 0:00:03]} 1/2-1/2

[Event "Chinese Chess League Men 2019"]
[Site "Daqing"]
[Date "2019.06.23"]
[Round "5.3"]
[White "Chu, Wei Chao"]
[Black "Xiu, Deshun"]
[Result "1-0"]
[ECO "E05"]
[WhiteElo "2374"]
[BlackElo "2538"]
[Annotator "ChessBase"]
[PlyCount "111"]
[EventDate "2019.06.19"]
[EventType "team-tourn"]
[EventCountry "CHN"]
[SourceTitle "playchess.com"]
[Source "ChessBase"]
[SourceQuality "1"]
[TimeControl "5400+30"]

1. d4 {[%emt 0:00:00]} Nf6 {[%emt 0:00:00]} 2. c4 {[%emt 0:00:00]} e6 {[%emt 0:00:00]} 3. g3 {[%emt 0:00:00]} d5 {[%emt 0:00:00]} 4. Bg2 {[%emt 0:00:00]} Be7 {[%emt 0:00:00]} 5. Nf3 {[%emt 0:00:03]} O-O {[%emt 0:00:07]} 6. O-O {[%emt 0:00:10]} dxc4 {[%emt 0:00:04]} 7. Qc2 {[%emt 0:00:34]} a6 {[%emt 0:00:07]} 8. a4 {[%emt 0:00:12]} Bd7 {[%emt 0:00:42]} 9. Qxc4 {[%emt 0:00:10]} Bc6 {[%emt 0:00:08]} 10. Bg5 {[%emt 0:00:06]} Nbd7 {[%emt 0:02:35]} 11. Nc3 {[%emt 0:00:28]} h6 {[%emt 0:00:37]} 12. Bxf6 {[%emt 0:00:10]} Nxf6 {[%emt 0:00:07]} 13. b4 {[%emt 0:05:52]} Bd5 {[%emt 0:00:47]} 14. Nxd5 {[%emt 0:01:18]} exd5 {[%emt 0:00:08]} 15. Qb3 {[%emt 0:01:36]} c6 {[%emt 0:04:44]} 16. Rfc1 {[%emt 0:09:18]} Ne4 {[%emt 0:21:28]} 17. Ne5 {[%emt 0:15:02]} Bf6 {[%emt 0:10:17]} 18. e3 {[%emt 0:17:46]} Nd6 {[%emt 0:17:29]} 19. Nd3 {[%emt 0:01:48]} Qe7 {[%emt 0:06:33]} 20. Qc2 {[%emt 0:02:52]} Rfe8 {[%emt 0:02:42]} 21. Re1 {[%emt 0:05:19]} Rac8 {[%emt 0:06:17]} 22. Nc5 {[%emt 0:07:34]} g6 {[%emt 0:02:35]} 23. Rad1 {[%emt 0:01:24]} Ra8 {[%emt 0:08:55]} 24. h4 {[%emt 0:04:10]} h5 {[%emt 0:00:21]} 25. Bf3 {[%emt 0:01:36]} Kg7 {[%emt 0:02:11]} 26. Kg2 {[%emt 0:00:06]} Rad8 {[%emt 0:06:36]} 27. Nd3 {[%emt 0:03:52]} Kg8 {[%emt 0:00:13]} 28. Nf4 {[%emt 0:01:01]} Bg7 {[%emt 0:00:05]} 29. Qb3 {[%emt 0:05:45]} b5 {[%emt 0:00:30]} 30. Nd3 {[%emt 0:00:11]} Nc4 {[%emt 0:00:32]} 31. Nc5 {[%emt 0:00:44]} bxa4 {[%emt 0:00:54]} 32. Qxa4 {[%emt 0:01:26]} Nb2 {[%emt 0:00:05]} 33. Qxc6 {[%emt 0:00:11]} Rd6 {[%emt 0:00:20]} 34. Qb7 {[%emt 0:01:04]} Qf8 {[%emt 0:05:46]} 35. Nxa6 {[%emt 0:06:56]} Nxd1 {[%emt 0:00:04]} 36. Rxd1 {[%emt 0:00:14]} Re7 {[%emt 0:00:05]} 37. Qb5 {[%emt 0:00:40]} Qd8 {[%emt 0:00:23]} 38. Nc5 {[%emt 0:01:17]} Ra7 {[%emt 0:00:05]} 39. Qd3 {[%emt 0:02:09]} Rb6 {[%emt 0:00:10]} 40. b5 {[%emt 0:00:08]} Bf8 {[%emt 0:00:32]} 41. Rb1 {[%emt 0:00:37]} Ra5 {[%emt 0:00:46]} 42. Qb3 {[%emt 0:02:29]} Bxc5 {[%emt 0:02:47]} 43. dxc5 {[%emt 0:00:07]} Rbxb5 {[%emt 0:00:04]} 44. Qxb5 {[%emt 0:00:10]} Rxb5 {[%emt 0:00:02]} 45. Rxb5 {[%emt 0:00:02]} Qd7 {[%emt 0:00:01]} 46. Rb6 {[%emt 0:00:45]} Kg7 {[%emt 0:01:43]} 47. Rd6 {[%emt 0:00:08]} Qb5 {[%emt 0:00:14]} 48. Rxd5 {[%emt 0:00:06]} Qc4 {[%emt 0:00:02]} 49. Re5 {[%emt 0:01:39]} Qc3 {[%emt 0:00:07]} 50. Rg5 {[%emt 0:00:47]} Kh6 {[%emt 0:02:24]} 51. c6 {[%emt 0:01:06]} Kg7 {[%emt 0:00:54]} 52. Rb5 {[%emt 0:00:21]} Qc4 {[%emt 0:00:16]} 53. Rb7 {[%emt 0:00:10]} Kh6 {[%emt 0:00:05]} 54. Rd7 {[%emt 0:00:37]} Qe6 {[%emt 0:00:49]} 55. Bd5 {[%emt 0:00:42]} Qe8 {[%emt 0:01:15]} 56. Rxf7 {[%emt 0:01:02]} 1-0

[Event "Chinese Chess League Men 2019"]
[Site "Daqing"]
[Date "2019.06.23"]
[Round "5.4"]
[White "Yuan, Qingyu"]
[Black "Zhao, Zhouqiao CHN"]
[Result "1/2-1/2"]
[ECO "E12"]
[WhiteElo "2355"]
[BlackElo "2215"]
[Annotator "NA"]
[PlyCount "78"]
[EventDate "2019.06.19"]
[EventType "team-tourn"]
[EventCountry "CHN"]
[SourceTitle "playchess.com"]
[Source "ChessBase"]
[SourceQuality "1"]
[TimeControl "5400+30"]

1. Nf3 {[%emt 0:00:00]} Nf6 {[%emt 0:00:00]} 2. c4 {[%emt 0:00:00]} b6 {[%emt 0:00:48]} 3. Nc3 {[%emt 0:00:43]} Bb7 {[%emt 0:00:15]} 4. d4 {[%emt 0:00:14]} e6 {[%emt 0:00:31]} 5. a3 {[%emt 0:00:40]} d5 {[%emt 0:04:09]} 6. cxd5 {[%emt 0:01:43]} Nxd5 {[%emt 0:00:06]} 7. Qc2 {[%emt 0:00:03]} Nxc3 {[%emt 0:14:01]} 8. bxc3 {[%emt 0:01:36]} Be7 {[%emt 0:00:14]} 9. e4 {[%emt 0:00:06]} O-O {[%emt 0:00:33]} 10. Bd3 {[%emt 0:00:04]} c5 {[%emt 0:04:00]} 11. O-O {[%emt 0:00:25]} cxd4 {[%emt 0:21:48]} 12. cxd4 {[%emt 0:02:01]} Qc8 {[%emt 0:00:08]} 13. Qe2 {[%emt 0:03:11]} Ba6 {[%emt 0:00:08]} 14. Rd1 {[%emt 0:21:07]} Bxd3 {[%emt 0:06:46]} 15. Rxd3 {[%emt 0:00:02]} Nd7 {[%emt 0:01:54]} 16. Bg5 {[%emt 0:12:38]} Bxg5 {[%emt 0:05:08]} 17. Nxg5 {[%emt 0:00:03]} h6 {[%emt 0:04:14]} 18. Nf3 {[%emt 0:06:57]} Qc7 {[%emt 0:07:20]} 19. Rad1 {[%emt 0:04:26]} Rfe8 {[%emt 0:08:55]} 20. e5 {[%emt 0:03:27]} Rac8 {[%emt 0:10:51]} 21. h4 {[%emt 0:09:10]} Qc2 {[%emt 0:01:27]} 22. Qe3 {[%emt 0:00:26]} b5 {[%emt 0:03:04]} 23. d5 {[%emt 0:14:04]} exd5 {[%emt 0:00:35]} 24. Rxd5 {[%emt 0:00:39]} Nb6 {[%emt 0:01:38]} 25. R5d2 {[%emt 0:04:58]} Qc5 {[%emt 0:00:44]} 26. Qb3 {[%emt 0:04:24]} Qc4 {[%emt 0:00:46]} 27. Qe3 {[%emt 0:01:40]} Qc5 {[%emt 0:00:05]} 28. Qb3 {[%emt 0:00:05]} Qc4 {[%emt 0:00:23]} 29. Qb1 {[%emt 0:01:17]} Qc5 {[%emt 0:00:51]} 30. Rd6 {[%emt 0:01:35]} a6 {[%emt 0:02:12]} 31. Qf5 {[%emt 0:01:13]} Nc4 {[%emt 0:00:54]} 32. Rd7 {[%emt 0:00:40]} Nxe5 {[%emt 0:00:36]} 33. Nxe5 {[%emt 0:00:31]} Qxe5 {[%emt 0:00:02]} 34. Qxf7+ {[%emt 0:00:12]} Kh8 {[%emt 0:00:05]} 35. f4 {[%emt 0:01:39]} Qc5+ {[%emt 0:00:39]} 36. Kh2 {[%emt 0:02:46]} Qf8 {[%emt 0:00:10]} 37. R1d6 {[%emt 0:00:28]} Qxf7 {[%emt 0:00:30]} 38. Rxf7 {[%emt 0:00:02]} Rf8 {[%emt 0:00:52]} 39. Rxf8+ {[%emt 0:02:12]} Rxf8 {[%emt 0:00:02]} 1/2-1/2

[Event "Chinese Chess League Men 2019"]
[Site "Daqing"]
[Date "2019.06.23"]
[Round "5.6"]
[White "Xiang, Zeyu"]
[Black "Li, Di"]
[Result "1-0"]
[ECO "D70"]
[WhiteElo "2432"]
[BlackElo "2535"]
[Annotator "ChessBase"]
[PlyCount "169"]
[EventDate "2019.06.19"]
[EventType "team-tourn"]
[EventCountry "CHN"]
[SourceTitle "playchess.com"]
[Source "ChessBase"]
[SourceQuality "1"]
[TimeControl "5400+30"]

1. d4 {[%emt 0:00:00]} Nf6 {[%emt 0:00:00]} 2. c4 {[%emt 0:00:00]} g6 {[%emt 0:00:33]} 3. f3 {[%emt 0:01:08]} d5 {[%emt 0:00:02]} 4. cxd5 {[%emt 0:00:00]} c6 {[%emt 0:00:30]} 5. dxc6 {[%emt 0:03:24]} Nxc6 {[%emt 0:00:12]} 6. e3 {[%emt 0:00:17]} e5 {[%emt 0:00:18]} 7. dxe5 {[%emt 0:03:15]} Qa5+ {[%emt 0:00:13]} 8. Nc3 {[%emt 0:06:10]} Qxe5 {[%emt 0:03:54]} 9. Bb5 {[%emt 0:03:50]} Bc5 {[%emt 0:00:00]} 10. Nge2 {[%emt 0:02:00]} O-O {[%emt 0:00:00]} 11. O-O {[%emt 0:16:17]} Rd8 {[%emt 0:00:40]} 12. Qa4 {[%emt 0:03:38]} Nb4 {[%emt 0:26:50]} 13. a3 {[%emt 0:07:35]} Nbd5 {[%emt 0:00:00]} 14. Bc4 {[%emt 0:52:23]} b5 {[%emt 0:12:57]} 15. Qxb5 {[%emt 0:01:57]} Nxe3 {[%emt 0:35:37]} 16. Bxe3 {[%emt 0:01:24]} Bxe3+ {[%emt 0:02:05]} 17. Kh1 {[%emt 0:00:00]} Qxb5 18. Bxb5 {[%emt 0:04:33]} Be6 {[%emt 0:07:25]} 19. Rad1 Bb3 {[%emt 0:03:59]} 20. Rxd8+ {[%emt 0:00:00]} Rxd8 {[%emt 0:03:04]} 21. Ba4 {[%emt 0:00:00]} Bc4 {[%emt 0:00:37]} 22. Rd1 {[%emt 0:00:05]} Rb8 {[%emt 0:00:00]} 23. b4 {[%emt 0:00:57]} h5 {[%emt 0:00:00]} 24. h4 {[%emt 0:00:00]} Rc8 {[%emt 0:01:01]} 25. Rd6 {[%emt 0:00:00]} Be6 {[%emt 0:01:27]} 26. g3 {[%emt 0:01:27]} Kg7 {[%emt 0:00:00]} 27. Kg2 {[%emt 0:02:57]} Rc7 {[%emt 0:01:32]} 28. Nb5 {[%emt 0:02:09]} Re7 {[%emt 0:01:30]} 29. Nbd4 {[%emt 0:01:18]} Bc4 {[%emt 0:02:07]} 30. Bb5 {[%emt 0:01:01]} Ne8 {[%emt 0:02:24]} 31. Rd8 {[%emt 0:01:06]} Bxb5 {[%emt 0:00:00]} 32. Nxb5 {[%emt 0:00:00]} Bb6 {[%emt 0:00:00]} 33. Rd2 {[%emt 0:00:00]} Re3 {[%emt 0:00:58]} 34. Nbc3 {[%emt 0:01:43]} Nc7 {[%emt 0:01:55]} 35. a4 {[%emt 0:02:07]} a5 {[%emt 0:00:00]} 36. b5 {[%emt 0:00:00]} Bc5 {[%emt 0:00:46]} 37. Ne4 {[%emt 0:01:00]} Ne6 {[%emt 0:04:29]} 38. Rc2 {[%emt 0:00:00]} Ba7 {[%emt 0:02:05]} 39. Ng5 {[%emt 0:00:00]} Nc5 {[%emt 0:00:00]} 40. Nf4 {[%emt 0:01:26]} Ra3 {[%emt 0:00:00]} 41. Re2 {[%emt 0:00:00]} Kf8 {[%emt 0:02:56]} 42. Nd5 {[%emt 0:00:00]} Nxa4 {[%emt 0:02:00]} 43. Re7 {[%emt 0:00:00]} Ra2+ {[%emt 0:00:02]} 44. Kf1 {[%emt 0:00:00]} Ra1+ {[%emt 0:00:00]} 45. Kg2 {[%emt 0:00:00]} Ra2+ {[%emt 0:00:00]} 46. Kh3 {[%emt 0:00:00]} Bg1 {[%emt 0:00:00]} 47. Rxf7+ {[%emt 0:00:00]} Ke8 {[%emt 0:00:28]} 48. g4 {[%emt 0:00:00]} Rh2+ {[%emt 0:02:08]} 49. Kg3 {[%emt 0:00:00]} Re2 {[%emt 0:01:14]} 50. Nf6+ {[%emt 0:00:00]} Kd8 {[%emt 0:00:00]} 51. gxh5 {[%emt 0:00:00]} gxh5 {[%emt 0:00:00]} 52. Nge4 {[%emt 0:00:00]} Bh2+ {[%emt 0:00:00]} 53. Kh3 {[%emt 0:00:00]} Be5 {[%emt 0:00:00]} 54. Nxh5 {[%emt 0:00:00]} Nb6 {[%emt 0:00:00]} 55. Ra7 {[%emt 0:01:24]} a4 {[%emt 0:00:06]} 56. Nc5 {[%emt 0:01:11]} Rc2 {[%emt 0:01:11]} 57. Ne6+ {[%emt 0:00:37]} Kc8 {[%emt 0:00:00]} 58. f4 {[%emt 0:00:00]} Bb2 {[%emt 0:00:00]} 59. f5 {[%emt 0:01:51]} Rc3+ {[%emt 0:00:12]} 60. Kg4 {[%emt 0:00:00]} Rc4+ {[%emt 0:00:38]} 61. Kg5 {[%emt 0:00:00]} a3 62. f6 {[%emt 0:00:44]} Kb8 {[%emt 0:00:52]} 63. Ra6 {[%emt 0:00:00]} Bc1+ {[%emt 0:01:42]} 64. Nhf4 {[%emt 0:00:00]} Nd5 {[%emt 0:00:00]} 65. f7 {[%emt 0:00:38]} Bxf4+ {[%emt 0:00:39]} 66. Kg6 {[%emt 0:00:35]} Rc8 {[%emt 0:01:23]} 67. Rxa3 {[%emt 0:00:00]} Bd6 {[%emt 0:00:00]} 68. Rf3 {[%emt 0:00:35]} Kb7 {[%emt 0:00:36]} 69. h5 {[%emt 0:00:26]} Rc1 {[%emt 0:00:44]} 70. f8=Q {[%emt 0:00:04]} Rg1+ {[%emt 0:01:11]} 71. Kf7 {[%emt 0:00:07]} Bxf8 {[%emt 0:00:00]} 72. Kxf8 {[%emt 0:00:35]} Rh1 {[%emt 0:00:24]} 73. Rf5 {[%emt 0:01:03]} Nf6 {[%emt 0:00:36]} 74. Rxf6 {[%emt 0:00:00]} Rxh5 {[%emt 0:00:00]} 75. Nd4 {[%emt 0:00:08]} Rd5 {[%emt 0:00:32]} 76. Rf4 {[%emt 0:00:37]} Re5 {[%emt 0:00:21]} 77. Rf5 {[%emt 0:00:12]} Re4 {[%emt 0:00:18]} 78. Rd5 {[%emt 0:00:06]} Kb6 {[%emt 0:00:00]} 79. Kf7 {[%emt 0:00:57]} Re1 {[%emt 0:00:11]} 80. Kf6 {[%emt 0:00:49]} Ka5 {[%emt 0:00:26]} 81. Kf5 {[%emt 0:00:30]} Rh1 {[%emt 0:00:32]} 82. Rd6 {[%emt 0:00:00]} Re1 {[%emt 0:00:27]} 83. Re6 {[%emt 0:00:28]} Rh1 {[%emt 0:00:26]} 84. Ke4 {[%emt 0:00:00]} Kb4 {[%emt 0:00:38]} 85. b6 {[%emt 0:00:47]} 1-0